fUST/lending_fUST_20250519
["ID","MTS","AMOUNT","RATE_DAILY","PERIOD"]
[361566140,1747617039013,-194.66,0.00019178,2]
[361566141,1747617039022,-450.0,0.00019178,2]
[361566142,1747617039031,-450.0,0.00019178,2]
[361566143,1747617039040,-450.0,0.00019178,2]
[361566144,1747617039050,-215.87,0.00019178,2]
[361566145,1747617039059,-450.0,0.00019178,2]
[361566146,1747617039069,-450.0,0.00019178,2]
[361566147,1747617039079,-347.8696684,0.00019178,2]
[361566148,1747617039088,-450.0,0.00019178,2]
[361566149,1747617039097,-450.0,0.00019178,2]
[361566150,1747617039107,-450.0,0.00019178,2]
[361566151,1747617039116,-450.0,0.00019178,2]
[361566152,1747617039126,-514.57,0.00019178,2]
[361566153,1747617039135,-450.0,0.00019178,2]
[361566154,1747617039144,-450.0,0.00019178,2]
[361566155,1747617039153,-250.06348451,0.00019178,2]
[361566156,1747617039163,-450.0,0.00019178,2]
[361566157,1747617039172,-450.0,0.00019178,2]
[361566158,1747617039181,-450.0,0.00019178,2]
[361566159,1747617039190,-446.38,0.00019178,2]
[361566160,1747617039199,-450.0,0.00019178,2]
[361566161,1747617039209,-450.0,0.00019178,2]
[361566162,1747617039218,-450.0,0.00019178,2]
[361566163,1747617039227,-450.0,0.00019178,2]
[361566164,1747617039236,-201.578614,0.00019178,2]
[361566165,1747617039245,-300.70251679,0.00019348,2]
[361566166,1747617039254,-500.0,0.00019414,2]
[361566167,1747617039266,-519.15,0.00019452,2]
[361566168,1747617039275,-229.94,0.00019452,2]
[361566169,1747617039285,-450.0,0.00019452,2]
[361566170,1747617039294,-450.0,0.00019452,2]
[361566171,1747617039304,-450.0,0.00019452,2]
[361566172,1747617039313,-300.70251679,0.00019693,2]
[361566173,1747617039323,-450.0,0.00019726,2]
[361566174,1747617039334,-450.0,0.00019726,2]
[361566175,1747617039348,-191.66117094,0.00019863,2]
[361566176,1747617039358,-500.0,0.00019863,2]
[361566177,1747617039368,-564.59,0.000199,2]
[361566178,1747617039377,-500.0,0.000199,2]
[361566179,1747617039386,-157.85,0.0002,2]
[361566180,1747617039395,-450.0,0.0002,2]
[361566181,1747617039405,-450.0,0.0002,2]
[361566182,1747617039415,-193.08054384,0.0002,2]
[361566183,1747617039426,-500.0,0.0002,2]
[361566184,1747617039435,-500.0,0.0002,2]
[361566185,1747617039444,-500.0,0.0002,2]
[361566186,1747617039453,-500.0,0.0002,2]
[361566187,1747617039463,-500.0,0.0002,2]
[361566188,1747617039473,-500.0,0.0002,2]
[361566189,1747617039483,-500.0,0.0002,2]
[361566190,1747617039492,-500.0,0.0002,2]
[361566191,1747617039501,-500.0,0.0002,2]
[361566192,1747617039513,-500.0,0.0002,2]
[361566193,1747617039522,-500.0,0.0002,2]
[361566194,1747617039531,-300.70251679,0.00020038,2]
[361566195,1747617039541,-619.505041,0.00020187,2]
[361566196,1747617039550,-524.32,0.00020273,2]
[361566197,1747617039559,-450.0,0.00020273,2]
[361566198,1747617039569,-500.0,0.00020382,2]
[361566199,1747617039578,-500.6342515,0.00020382,2]
[361566200,1747617039587,-500.0,0.00020382,2]
[361566201,1747617039596,-419.55099666,0.00020382,2]
[361566202,1747617039605,-500.0,0.00020382,2]
[361566203,1747617039614,-500.0,0.00020382,2]
[361566204,1747617039623,-500.0,0.00020382,2]
[361566205,1747617039632,-500.0,0.00020382,2]
[361566206,1747617039641,-500.0,0.00020382,2]
[361566207,1747617039650,-500.0,0.00020382,2]
[361566208,1747617039659,-493.8582885,0.00020382,2]
[361566209,1747617039668,-500.0,0.00020382,2]
[361566210,1747617039677,-500.0,0.00020382,2]
[361566211,1747617039686,-500.0,0.00020382,2]
[361566212,1747617039695,-500.0,0.00020382,2]
[361566213,1747617039704,-500.0,0.00020382,2]
[361566214,1747617039714,-500.0,0.00020382,2]
[361566215,1747617039724,-500.0,0.00020382,2]
[361566216,1747617039734,-500.0,0.00020382,2]
[361566217,1747617039743,-300.70251679,0.00020383,3]
[361566218,1747617039753,-561.311,0.00020463,2]
[361566219,1747617039763,-404.0,0.00020463,2]
[361566220,1747617039773,-450.0,0.00020547,2]
[361566221,1747617039782,-300.70251679,0.00020728,3]
[361566222,1747617039791,-450.0,0.00020821,2]
[361566224,1747617039800,-305.76,0.00020854,2]
[361566225,1747617039809,-3000.0,0.00021,2]
[361566226,1747617039820,-2000.0,0.00021,2]
[361566227,1747617039830,-3000.0,0.0002101,2]
[361566228,1747617039841,-3000.0,0.0002102,2]
[361566229,1747617039850,-3000.0,0.0002103,2]
[361566230,1747617039859,-3000.0,0.0002104,2]
[361566231,1747617039869,-3000.0,0.0002105,2]
[361566232,1747617039879,-3000.0,0.0002106,2]
[361566233,1747617039888,-3000.0,0.0002107,2]
[361566234,1747617039897,-300.70251679,0.00021072,4]
[361566235,1747617039907,-3000.0,0.0002108,2]
[361566237,1747617039916,-783.38744278,0.0002108,2]
[361566239,1747617039925,-3000.0,0.0002109,2]
[361566241,1747617039935,-576.65,0.00021095,2]
[361566243,1747617039945,-3000.0,0.000211,2]
[361566245,1747617039954,-3000.0,0.0002111,2]
[361566247,1747617039963,-3000.0,0.0002112,2]
[361566249,1747617039973,-3000.0,0.0002113,2]
[361566251,1747617039982,-3000.0,0.0002114,2]
[361566253,1747617039991,-3000.0,0.0002115,2]
[361566255,1747617040001,-3000.0,0.0002116,2]
[361566257,1747617040012,-3000.0,0.0002117,2]
[361566259,1747617040021,-3000.0,0.0002118,2]
[361566261,1747617040031,-3000.0,0.0002119,2]
[361566263,1747617040040,-3000.0,0.000212,2]
[361566265,1747617040049,-3000.0,0.0002121,2]
[361566267,1747617040059,-3000.0,0.0002122,2]
[361566269,1747617040068,-3000.0,0.0002123,2]
[361566272,1747617040077,-3000.0,0.0002124,2]
[361566275,1747617040086,-3000.0,0.0002125,2]
[361566276,1747617040095,-3000.0,0.0002126,2]
[361566277,1747617040104,-3000.0,0.0002127,2]
[361566278,1747617040114,-3000.0,0.0002128,2]
[361566279,1747617040123,-3000.0,0.0002129,2]
[361566281,1747617040133,-3000.0,0.000213,2]
[361566283,1747617040142,-3000.0,0.0002131,2]
[361566285,1747617040152,-2903.57329106,0.0002132,2]
[361566287,1747617040165,-96.42670894,0.0002132,2]
[361566289,1747617040175,-3000.0,0.0002133,2]
[361566290,1747617040184,-3000.0,0.0002134,2]
[361566291,1747617040192,-2351.42553371,0.0002135,2]
[361566292,1747617040204,-482.74203518,0.0002135,2]
[361566293,1747617040215,-165.83243111,0.0002135,2]
[361566294,1747617040223,-207.4,0.00021358,2]
[361566295,1747617040233,-205.9021066,0.00021358,2]
[361566297,1747617040242,-3000.0,0.0002136,2]
[361566299,1747617040251,-3000.0,0.0002137,2]
[361566301,1747617040264,-3000.0,0.0002138,2]
[361566303,1747617040280,-3000.0,0.0002139,2]
[361566305,1747617040289,-3000.0,0.000214,2]
[361566307,1747617040298,-3000.0,0.0002141,2]
[361566308,1747617040308,-300.70251679,0.00021417,5]
[361566310,1747617040317,-3000.0,0.0002142,2]
[361566311,1747617040327,-3000.0,0.0002143,2]
[361566313,1747617040341,-3652.74007295,0.0002144,2]
[361566316,1747617040353,-256.37985105,0.0002144,2]
[361566317,1747617040362,-800.0,0.00021683,2]
[361566318,1747617040371,-214.23801227,0.00021762,5]
[361566319,1747617040383,-86.46450452,0.00021762,5]
[361566320,1747617040392,-320.12282596,0.00021918,7]
[361566333,1747617040572,-450.0,0.00019726,2]
[361566335,1747617040582,-184.0,0.0002,2]
[361566376,1747617040929,-97.27606857,0.0002,2]
[361566622,1747617043447,-274.75643173,0.00016112,2]
[361566627,1747617043503,-1685.7641969,0.00016112,2]
[361566941,1747617046401,-411.88296922,0.00016112,2]
[361566956,1747617046533,-7827.38483576,0.00016112,2]
[361566958,1747617046542,-171.548,0.00019178,2]
[361566960,1747617046551,-274.89054547,0.0001926,2]
[361566962,1747617046560,-63.07393143,0.0002,2]
[361566964,1747617046569,-987.33929584,0.00021918,7]
[361566966,1747617046578,-1483.17258979,0.00021927,2]
[361568303,1747618131845,-575.04811427,0.000149,2]
[361568304,1747618131866,-474.95188573,0.00017177,2]
[361568354,1747618233340,-142.45999663,0.00017177,2]
[361568355,1747618233352,-4913.50888009,0.00017654,2]
[361568372,1747618238656,-135.40957755,0.00017654,2]
[361568373,1747618238666,-160.0,0.00017723,2]
[361568374,1747618238675,-599.487077,0.00017865,2]
[361568375,1747618238685,-2816.1064062,0.00018034,2]
[361568376,1747618238695,-390.79894091,0.00018471,2]
[361568377,1747618238707,-13.20105909,0.00018471,2]
[361568378,1747618238719,-300.0,0.00018783,2]
[361568379,1747618238728,-160.0,0.00018784,2]
[361568380,1747618238738,-3922.60147296,0.00018784,2]
[361568381,1747618238750,-1174.95282108,0.00018784,2]
[361568412,1747618240793,-160.0,0.00017546,2]
[361568415,1747618240803,-2409.17374703,0.00018784,2]
[361568417,1747618240815,-475.32,0.00018784,2]
[361568424,1747618240873,-747.04065907,0.00018784,2]
[361568695,1747618243691,-3907.41312509,0.00018784,2]
[361568697,1747618243701,-300.0,0.0001881,2]
[361568699,1747618243711,-1200.0,0.0001881,2]
[361568701,1747618243722,-569.16167979,0.00018914,2]
[361568703,1747618243731,-500.0,0.00018914,2]
[361568706,1747618243741,-500.0,0.00018914,2]
[361568708,1747618243751,-500.0,0.00018914,2]
[361568710,1747618243760,-500.0,0.00018914,2]
[361568712,1747618243769,-500.0,0.00018914,2]
[361568714,1747618243778,-268.8008736,0.00018914,2]
[361568717,1747618243798,-231.1991264,0.00018914,2]
[361568719,1747618243807,-150.88259483,0.00018914,2]
[361569033,1747618246758,-414.67639586,0.00018914,2]
[361569035,1747618246768,-500.0,0.00018914,2]
[361569037,1747618246778,-500.0,0.00018914,2]
[361569039,1747618246788,-272.50009534,0.00018914,2]
[361569041,1747618246798,-340.94764275,0.00018915,2]
[361569045,1747618246855,-1082.12230674,0.00018915,2]
[361570966,1747618441259,446.0,0.00013699,2]
[361570967,1747618451977,-1483.0,0.00013699,2]
[361571488,1747619437727,-471.54538709,0.00013027,2]
[361571489,1747619437740,-109.97282991,0.00013027,2]
[361571490,1747619437750,-581.518217,0.00013699,2]
[361571491,1747619437760,-64.39870479,0.00015612,2]
[361571492,1747619437772,-1009.60129521,0.00015612,2]
[361571493,1747619437786,-225.20066232,0.000169,2]
[361571495,1747619437796,-180.05629641,0.00016991,2]
[361571496,1747619437806,-225.20066216,0.0001721,2]
[361571497,1747619437815,-514.063384,0.00017286,2]
[361571498,1747619437825,-1363.4583505,0.00017377,2]
[361571499,1747619437834,-225.20066216,0.00017521,2]
[361571500,1747619437844,-250.37957464,0.0001759,2]
[361571501,1747619437854,-225.20066216,0.00017831,2]
[361571502,1747619437863,-1485.690733,0.00017946,2]
[361571503,1747619437873,-237.7339411,0.00017964,2]
[361571504,1747619437882,-225.20066216,0.00018141,2]
[361571505,1747619437891,-225.20066216,0.00018452,2]
[361571506,1747619437900,-160.0,0.00018481,2]
[361571507,1747619437910,-157.0408303,0.00018697,2]
[361571508,1747619437919,-225.20066216,0.00018762,2]
[361571509,1747619437929,-300.0,0.00018796,2]
[361571510,1747619437938,-500.0,0.00018796,2]
[361571511,1747619437948,-229.50655452,0.00018796,2]
[361571512,1747619437957,-596.73012156,0.00018796,2]
[361571513,1747619437967,-500.0,0.00018796,2]
[361571514,1747619437976,-308.05556615,0.00018796,2]
[361571515,1747619437986,-500.0,0.00018796,2]
[361571516,1747619437996,-176.59243739,0.00018796,2]
[361571517,1747619438008,-323.40756261,0.00018796,2]
[361571518,1747619438018,-353.83090985,0.00018796,2]
[361571519,1747619438027,-608.85143928,0.00018796,2]
[361571520,1747619438040,-41.98997996,0.00018796,2]
[361571521,1747619438050,-500.0,0.00018796,2]
[361571522,1747619438060,-500.0,0.00018796,2]
[361571523,1747619438069,-500.0,0.00018796,2]
[361571524,1747619438078,-500.0,0.00018796,2]
[361571525,1747619438088,-500.0,0.00018796,2]
[361571526,1747619438098,-500.0,0.00018796,2]
[361571527,1747619438108,-500.0,0.00018796,2]
[361571528,1747619438117,-500.0,0.00018796,2]
[361571529,1747619438127,-606.12465219,0.00018796,2]
[361571530,1747619438137,-500.0,0.00018796,2]
[361571531,1747619438146,-94.3275559,0.00018796,2]
[361571532,1747619438158,-405.6724441,0.00018796,2]
[361571533,1747619438166,-2220.47269659,0.00018797,3]
[361571615,1747619439956,-1056.20556976,0.00018797,3]
[361573060,1747620631972,-597.91018,0.00013562,2]
[361573062,1747620631985,-597.91018,0.00013699,2]
[361573063,1747620631994,-364.304633,0.00017724,2]
[361573065,1747620632003,-2000.0,0.000182,2]
[361573067,1747620632012,-998.55070715,0.00018344,2]
[361573069,1747620632021,-160.0,0.00018344,2]
[361573070,1747620632030,-422.53311782,0.00018344,2]
[361573071,1747620632039,-160.0,0.00018344,2]
[361573072,1747620632048,-212.32903618,0.00018344,2]
[361573073,1747620632057,-157.04083027,0.00018594,2]
[361573074,1747620632066,-500.0,0.00018693,2]
[361573075,1747620632075,-500.0,0.00018693,2]
[361573076,1747620632084,-500.0,0.00018693,2]
[361573077,1747620632094,-500.0,0.00018693,2]
[361573078,1747620632103,-11453.16524915,0.00018693,3]
[361573080,1747620632112,-96245.85196216,0.00018693,2]
[361573082,1747620632123,-50000.0,0.00018694,2]
[361573084,1747620632132,-212.35735062,0.00018695,3]
[361573086,1747620632141,-99864.63553305,0.00018695,2]
[361573134,1747620637781,-500.0,0.00018693,2]
[361573135,1747620637791,-500.0,0.00018693,2]
[361573136,1747620637801,-190.12827548,0.00018693,2]
[361573137,1747620637963,-500.0,0.00018693,2]
[361573138,1747620637973,-366.90559679,0.00018693,2]
[361573139,1747620637982,-500.0,0.00018693,2]
[361573140,1747620637992,-500.0,0.00018693,2]
[361573141,1747620638001,-500.0,0.00018693,2]
[361573142,1747620638011,-500.0,0.00018693,2]
[361573143,1747620638021,-500.0,0.00018693,2]
[361573144,1747620638031,-375.36612771,0.00018693,2]
[361576270,1747621832257,-721.70166619,0.00013553,2]
[361576271,1747621832266,-721.70166619,0.0001369,2]
[361576272,1747621832276,-575.12754016,0.000149,2]
[361576273,1747621832285,-160.0,0.00015661,2]
[361576275,1747621832294,-161.446062,0.00016387,2]
[361576277,1747621832303,-161.446062,0.00016428,2]
[361576279,1747621832316,-161.446062,0.00016469,2]
[361576281,1747621832325,-209.7562474,0.00016506,2]
[361576283,1747621832334,-977.4691674,0.00017286,2]
[361576284,1747621832343,-569.057528,0.00017317,2]
[361576286,1747621832354,-300.0,0.00017908,2]
[361576288,1747621832365,-179.0,0.00017908,2]
[361576290,1747621832375,-12638.53552368,0.00017909,2]
[361576292,1747621832387,-500.0,0.00017998,2]
[361576293,1747621832398,-197.55914653,0.00017998,2]
[361576295,1747621832409,-500.0,0.00017998,2]
[361576297,1747621832420,-500.0,0.00017998,2]
[361576299,1747621832430,-499.32040349,0.00017998,2]
[361576301,1747621832440,-50000.0,0.00017999,2]
[361576303,1747621832450,-17000.0,0.00018,3]
[361576305,1747621832459,-11163.0533617,0.00018,2]
[361576306,1747621832469,-2996.91932525,0.00018,3]
[361576308,1747621832478,-998.68447496,0.00018,3]
[361576310,1747621832488,-212.35735062,0.00018,3]
[361576312,1747621832497,-998.68447496,0.00018108,2]
[361576314,1747621832506,-160.0,0.00018108,2]
[361576316,1747621832515,-160.0,0.00018108,2]
[361576317,1747621832525,-160.0,0.00018108,2]
[361576319,1747621832534,-422.59250115,0.00018108,2]
[361576321,1747621832543,-212.35735062,0.00018108,2]
[361576323,1747621832553,-160.0,0.00018133,2]
[361576325,1747621832565,-160.0,0.00018133,2]
[361576327,1747621832576,-160.0,0.00018133,2]
[361576328,1747621832586,-153.0,0.00018329,2]
[361576330,1747621832595,-331.9759368,0.00018377,2]
[361576331,1747621832604,-283.838,0.00018382,2]
[361576332,1747621832613,-150.14,0.000185,2]
[361576334,1747621832623,-13032.9070087,0.00018691,2]
[361576336,1747621832633,-151.0,0.00018691,2]
[361576337,1747621832642,-200.32338,0.00018691,2]
[361576339,1747621832653,-200.32338,0.00018691,2]
[361576341,1747621832662,-151.0,0.00018693,2]
[361576343,1747621832671,-154.212353,0.00018694,2]
[361576345,1747621832680,-151.0,0.00018694,2]
[361576346,1747621832689,-161.16646,0.00018694,2]
[361576348,1747621832698,-153.502971,0.00018694,2]
[361576350,1747621832708,-5726.58262457,0.00018695,3]
[361576352,1747621832717,-50830.69551725,0.00018695,2]
[361576354,1747621832727,-40308.96030865,0.00018695,2]
[361576728,1747621838447,-300.0,0.00017908,2]
[361576729,1747621838457,-500.0,0.00018692,2]
[361576730,1747621838467,-500.0,0.00018692,2]
[361576731,1747621838476,-360.61664635,0.00018692,2]
[361576732,1747621838486,-500.0,0.00018692,2]
[361576733,1747621838495,-500.0,0.00018692,2]
[361576734,1747621838504,-177.49807943,0.00018692,2]
[361576735,1747621838514,-500.0,0.00018692,2]
[361576736,1747621838523,-500.0,0.00018692,2]
[361576737,1747621838533,-500.0,0.00018692,2]
[361576738,1747621838542,-500.0,0.00018692,2]
[361576739,1747621838552,-282.80579351,0.00018692,2]
[361576740,1747621838561,-500.0,0.00018692,2]
[361576741,1747621838570,-500.0,0.00018692,2]
[361576742,1747621838583,-500.0,0.00018692,2]
[361576743,1747621838592,-500.0,0.00018692,2]
[361576744,1747621838601,-500.0,0.00018692,2]
[361576745,1747621838611,-500.0,0.00018692,2]
[361576746,1747621838621,-500.0,0.00018692,2]
[361576747,1747621838631,-1444.04817091,0.00018695,2]
[361576748,1747621838644,-4136.07941467,0.00018695,2]
[361579730,1747623032246,-590.183906,0.00013426,2]
[361579732,1747623032255,-590.183906,0.00013699,2]
[361579734,1747623032265,-300.0,0.00015688,2]
[361579736,1747623032275,-300.0,0.00015688,2]
[361579738,1747623032284,-1200.0,0.00015688,2]
[361579754,1747623032450,-12638.53552368,0.00015689,2]
[361579756,1747623032462,-161.407978,0.00015896,2]
[361579758,1747623032471,-161.407978,0.00015976,2]
[361579759,1747623032481,-457.335075,0.00016127,2]
[361579760,1747623032490,-160.0,0.00016315,2]
[361579761,1747623032499,-500.0,0.0001651,2]
[361579763,1747623032509,-624.1514692,0.000169,2]
[361579765,1747623032519,-308.0,0.00017158,2]
[361579767,1747623032528,-624.151469,0.0001721,2]
[361579769,1747623032537,-2771.8659037,0.00017353,2]
[361579771,1747623032546,-624.151469,0.00017521,2]
[361579773,1747623032556,-624.151469,0.00017831,2]
[361579775,1747623032566,-305.43579578,0.000179,2]
[361579777,1747623032575,-227.07,0.00017999,2]
[361579779,1747623032585,-222.1467115,0.00017999,2]
[361579780,1747623032594,-12632.43442833,0.00018,3]
[361579781,1747623032603,-998.68447496,0.00018,3]
[361579782,1747623032613,-212.35735062,0.00018,3]
[361579783,1747623032622,-160.1640952,0.00018082,2]
[361579784,1747623032632,-284.12071919,0.00018082,2]
[361579817,1747623038152,-160.0,0.0001631,2]
[361579819,1747623038162,-3634.37414741,0.00017901,2]
[361579824,1747623038207,-533.6603739,0.00017901,2]
[361579827,1747623038218,-300.0,0.00018081,2]
[361579829,1747623038228,-292.67921661,0.00018082,2]
[361579831,1747623038238,-307.0390926,0.00018082,2]
[361579833,1747623038247,-158.0682864,0.00018082,2]
[361579835,1747623038256,-569.6479192,0.00018082,2]
[361579837,1747623038266,-158.0682864,0.00018082,2]
[361579839,1747623038276,-403.968229,0.00018082,2]
[361579841,1747623038285,-569.6479192,0.00018082,2]
[361579843,1747623038294,-158.0682864,0.00018082,2]
[361579845,1747623038304,-354.97020394,0.00018082,2]
[361579847,1747623038315,-214.67771526,0.00018082,2]
[361579849,1747623038325,-411.5514471,0.00018082,2]
[361579851,1747623038334,-569.6479192,0.00018082,2]
[361579853,1747623038343,-160.0,0.00018117,2]
[361579854,1747623038352,-160.0,0.00018139,2]
[361579855,1747623038361,-998.68447496,0.00018139,2]
[361579857,1747623038370,-160.0,0.00018139,2]
[361579859,1747623038380,-160.0,0.00018139,2]
[361579861,1747623038389,-422.59250115,0.00018139,2]
[361579863,1747623038399,-212.35735062,0.00018139,2]
[361579865,1747623038409,-624.151469,0.00018141,2]
[361579867,1747623038418,-1050.21,0.000182,2]
[361579869,1747623038427,-153.0,0.00018347,2]
[361579871,1747623038436,-61.3638379,0.00018452,2]
[361579873,1747623038448,-562.7876311,0.00018452,2]
[361579875,1747623038457,-176.51796783,0.000185,3]
[361582852,1747624232487,-591.649962,0.00013426,2]
[361582854,1747624232497,-257.62398224,0.00013699,2]
[361582857,1747624232510,-334.02597976,0.00013699,2]
[361582859,1747624232519,-228.667538,0.00017346,2]
[361582861,1747624232529,-292.69655155,0.00018086,2]
[361582863,1747624232539,-160.0,0.00018091,2]
[361582865,1747624232548,-100.12763244,0.00018091,2]
[361582873,1747624232622,-898.55684252,0.00018091,2]
[361582876,1747624232633,-300.0,0.00018109,2]
[361582878,1747624232643,-212.35735062,0.0001811,2]
[361582880,1747624232652,-422.59250115,0.0001811,2]
[361582882,1747624232662,-161.95669946,0.0001811,2]
[361583100,1747624238342,-160.0,0.00018091,2]
[361583101,1747624238352,-142.95563493,0.00018109,2]
[361583289,1747624240534,-157.04436507,0.00018109,2]
[361583291,1747624240544,-12476.57882422,0.0001811,2]
[361583293,1747624240554,-50000.0,0.00018129,2]
[361583295,1747624240563,-500.0,0.00018185,2]
[361583297,1747624240573,-35123.03516654,0.00018186,3]
[361583299,1747624240584,-25415.34775862,0.00018186,2]
[361583301,1747624240593,-998.68447496,0.00018186,3]
[361583303,1747624240604,-2000.0,0.000182,2]
[361583305,1747624240613,-569.6479192,0.000183,2]
[361583307,1747624240623,-247.652092,0.000183,2]
[361583308,1747624240632,-151.0,0.00018452,2]
[361583310,1747624240642,-873.69203217,0.000185,3]
[361583312,1747624240651,-233.08337615,0.00018599,2]
[361583314,1747624240661,-239.6639,0.000186,2]
[361583316,1747624240671,-1475.30825371,0.000186,4]
[361583477,1747624243451,-1138.29174629,0.000186,4]
[361583479,1747624243461,-2613.6,0.000186,4]
[361583481,1747624243472,-2613.6,0.000186,4]
[361583483,1747624243481,-2613.6,0.000186,4]
[361583485,1747624243491,-2613.6,0.000186,4]
[361583487,1747624243500,-2613.6,0.000186,4]
[361583489,1747624243509,-2613.6,0.000186,4]
[361583491,1747624243519,-2613.6,0.000186,4]
[361583493,1747624243528,-2613.6,0.000186,4]
[361583495,1747624243538,-2613.6,0.000186,4]
[361583497,1747624243547,-2613.6,0.000186,4]
[361583499,1747624243557,-2613.6,0.000186,4]
[361583501,1747624243566,-2613.6,0.000186,4]
[361583503,1747624243575,-2613.6,0.000186,4]
[361583505,1747624243589,-2613.6,0.000186,4]
[361583507,1747624243598,-2613.6,0.000186,4]
[361583509,1747624243608,-2613.6,0.000186,4]
[361583512,1747624243618,-2613.6,0.000186,4]
[361583515,1747624243627,-2613.6,0.000186,4]
[361583517,1747624243636,-2613.6,0.000186,4]
[361583519,1747624243646,-2613.6,0.000186,4]
[361583521,1747624243655,-2613.6,0.000186,4]
[361583523,1747624243664,-2613.6,0.000186,4]
[361583525,1747624243674,-2613.6,0.000186,4]
[361583527,1747624243683,-2613.6,0.000186,4]
[361583529,1747624243692,-2613.6,0.000186,4]
[361583531,1747624243703,-2613.6,0.000186,4]
[361583533,1747624243712,-151.0,0.000186,2]
[361583535,1747624243722,-153.789876,0.000186,2]
[361583537,1747624243732,-151.0,0.000186,2]
[361583539,1747624243741,-180.291042,0.000186,2]
[361583540,1747624243750,-180.291042,0.000186,2]
[361583541,1747624243759,-151.0,0.000186,2]
[361583542,1747624243769,-151.0,0.000186,2]
[361583543,1747624243778,-163.150027,0.000186,2]
[361583544,1747624243787,-168.737469,0.000186,2]
[361583545,1747624243796,-168.737469,0.000186,2]
[361583546,1747624243805,-151.0,0.000186,2]
[361583547,1747624243814,-158.863542,0.000186,2]
[361583548,1747624243823,-151.0,0.000186,2]
[361583549,1747624243833,-151.0,0.000186,2]
[361583550,1747624243842,-500.0,0.00018694,2]
[361583551,1747624243852,-252.43165245,0.00018694,2]
[361583552,1747624243861,-500.0,0.00018694,2]
[361583553,1747624243870,-500.0,0.00018694,2]
[361583554,1747624243879,-500.0,0.00018694,2]
[361583555,1747624243888,-474.2486556,0.00018694,2]
[361583556,1747624243899,-500.0,0.00018694,2]
[361583557,1747624244065,-500.0,0.00018694,2]
[361583558,1747624244076,-500.0,0.00018694,2]
[361583559,1747624244088,-500.0,0.00018694,2]
[361583560,1747624244097,-500.0,0.00018694,2]
[361583561,1747624244106,-500.0,0.00018694,2]
[361583562,1747624244115,-500.0,0.00018694,2]
[361583563,1747624244125,-500.0,0.00018694,2]
[361583564,1747624244134,-500.0,0.00018694,2]
[361583566,1747624244143,-597.96405545,0.00018694,2]
[361583568,1747624244153,-600.0,0.00018694,2]
[361583570,1747624244162,-151.0,0.00018694,2]
[361583572,1747624244171,-4584.62312781,0.00018695,2]
[361583586,1747624244293,-847.92286168,0.00018695,2]
[361583588,1747624244305,-724.21646928,0.00018695,2]
[361585206,1747625433507,-605.104419,0.00013562,2]
[361585207,1747625433517,-605.104419,0.00013699,2]
[361585208,1747625433527,-160.0,0.00017262,2]
[361585209,1747625433536,-404.512677,0.00017433,2]
[361585210,1747625433546,-160.0,0.00017992,2]
[361585211,1747625433555,-160.0,0.00017992,2]
[361585212,1747625433564,-212.35735062,0.00018008,2]
[361585213,1747625433574,-300.0,0.00018097,2]
[361585214,1747625433583,-2400.0,0.00018098,4]
[361585215,1747625433592,-14052.58022946,0.0001812,2]
[361585231,1747625438524,-160.0,0.00017357,2]
[361585232,1747625438534,-160.0,0.00017992,2]
[361585233,1747625438543,-256.66414437,0.00017992,2]
[361585783,1747625446625,-160.0,0.00017183,2]
[361585785,1747625446635,-421.16818167,0.00017992,2]